Cogmind - Beta 17.1 @@@ ROGUE MODE // 2026.09.08 @ 09:04:21 Player: Godsword Result: Destroyed by Y-45 Defender with Beam Rifle Performance ------------- Evolutions (1) 500 Regions Visited (2) 400 Robots Destroyed (10) 50 Value Destroyed (117) 117 Prototype IDs (0) 0 Alien Tech Used (0) 0 Bonus (200) 200 TOTAL SCORE: 1267 Bonus ------- Pacifist 200 Cogmind --------- Core Integrity 0/400 Matter 148/300 Energy 125/125 System Corruption 0% Temperature Cool (11) Movement Flying (40) Location -9/Materials Parts ------- > --- POWER (1) -------- Light Ion Engine > --- PROPULSION (3) --- Flight Unit > --- UTILITY (3) ------ Signal Interpreter Targeting Computer > --- WEAPON (2) ------- Mini Grenade Launcher Mini Grenade Launcher > --- INVENTORY (5) ---- Light Assault Rifle Mini Grenade Launcher Heavy Hammer Peak State ------------ > --- POWER ------------ (None) > --- PROPULSION ------- Flight Unit Flight Unit Flight Unit > --- UTILITY ---------- Signal Interpreter Targeting Computer > --- WEAPON ----------- Mini Grenade Launcher Heavy Hammer > --- INVENTORY -------- Light Assault Rifle Mini Grenade Launcher [Rating: 9] Favorites ----------- Power Light Ion Engine Engine Light Ion Engine Propulsion Flight Unit Flight Unit Flight Unit Utility Targeting Computer Processor Targeting Computer Weapon Mining Laser Energy Gun Heavy EM Pulse Gun Ballistic Gun Light Assault Rifle Launcher Mini Grenade Launcher Special Weapon Mining Laser Impact Weapon Heavy Hammer Build | -11 -10 -9 ------- Run | Yrd Mat Mat Slots Evolved 2 | . . 2 Power . | . . . Propulsion 1 | . . 1 Utility 1 | . . 1 Weapon . | . . . Parts Attached 14 | . 4 10 Power 1 | . . 1 Engine 1 | . . 1 Core . | . . . Reactor . | . . . Propulsion 4 | . . 4 Treads . | . . . Leg . | . . . Wheel . | . . . Hover . | . . . Flight 4 | . . 4 Utility 2 | . 2 . Device . | . . . Storage . | . . . Processor 2 | . 2 . Hackware . | . . . Protection . | . . . Artifact . | . . . Weapon 7 | . 2 5 Energy Gun 1 | . . 1 Energy Cannon . | . . . Ballistic Gun 1 | . . 1 Ballistic Cannon . | . . . Launcher 2 | . . 2 Special Weapon 2 | . 2 . Impact Weapon 1 | . . 1 Slashing Weapon . | . . . Piercing Weapon . | . . . Special Melee Weapon . | . . . Unidentified Prototypes . | . . . Parts Lost 4 | . . 4 Power . | . . . Propulsion 3 | . . 3 Utility . | . . . Weapon 1 | . . 1 Highest Loss Streak 2 | . . 2 To Critical Strikes . | . . . Average Backups . | . . 1 Power . | . . . Propulsion . | . . . Utility . | . . . Weapon . | . . 1 Tool/Special . | . . . Unused Backups 1 | . . 1 Power . | . . . Propulsion . | . . . Utility . | . . . Weapon 1 | . . 1 Tool/Special . | . . . Average Slot Usage (%) 48 | . 39 53 Flight 8 | . . 11 Processor 21 | . 19 22 Ballistic Gun 2 | . . 3 Launcher 3 | . . 5 Special Weapon 9 | . 18 4 Impact Weapon 2 | . . 4 Peak Build Rating 9 | . 4 9 Average Rating 4 | . 3 5 On Entrance 1 | . . 4 Avg Prop Armor Cover (%) . | . . . Naked Turns 3 | . 3 . Heaviest Build 5 | . 2 5 Greatest Support 15 | 3 3 15 Greatest Overweight (x) . | . . . Average Overweight (x) . | . . . Largest Inventory Capacity 5 | 5 5 5 Average Capacity 5 | 5 5 5 Most Carried 3 | . 1 3 Average Carried . | . . 1 Final Capacity 5 | 5 5 5 Final Carried 3 | . 1 3 Class Distribution -------------------- 100% | Mutant Dominant Class ---------------- Mutant | -10/Materials Mutant | -9/Materials Resources | -11 -10 -9 ----------- Run | Yrd Mat Mat Matter Collected 235 | 200 . 35 Remotely . | . . . Salvage Created 106 | . . 106 Parts 9 | . . 9 Haulers Intercepted . | . . . Recyclers Shooed 1 | . . 1 Parts Field Recycled . | . . . Retrieved Matter . | . . . Parts Self-Destructed . | . . . Prevented . | . . . Parts Restored . | . . . Kills | -11 -10 -9 ------- Run | Yrd Mat Mat Combat Hostiles Destroyed 6 | . . 6 Guns 3 | . . 3 AOE 3 | . . 3 Classes Destroyed 4 | . . 4 Worker 1 | . . 1 Builder 2 | . . 2 Watcher 1 | . . 1 Swarmer 6 | . . 6 Best Kill Streak 3 | . . 3 Combat Bots Only 3 | . . 3 Max Kills in Single Turn 1 | . . 1 Gunslinging . | . . . Exploded 1 | . . 1 Melee . | . . . Uniques/NPCs Destroyed . | . . . Combat | -11 -10 -9 -------- Run | Yrd Mat Mat Hostile Shots Fired 101 | . . 101 Missed 42 | . . 42 Hits 59 | . . 59 Projectile 59 | . . 59 Damage Taken 632 | . . 632 Core 409 | . . 409 Absorbed by Shields . | . . . Core Remaining (%) 100 | 100 100 . Volleys Fired 31 | . 2 29 Largest 2 | . 2 2 Hottest 200 | . 200 200 Shots Fired 34 | . 4 30 Gun 23 | . . 23 Cannon . | . . . Launcher 5 | . . 5 Special 6 | . 4 2 Kinetic 17 | . . 17 Thermal 6 | . 4 2 Explosive 5 | . . 5 Electromagnetic 6 | . . 6 Robot Hit Streak 3 | . 1 3 Robot Miss Streak 2 | . 1 2 Penetration Max . | . . . Secondary Targets . | . . . Shots Hit Robots 27 | . 1 26 Core Hits 10 | . . 10 Critical Kills . | . . . Critical Parts Destroyed 2 | . . 2 Critical Strikes 2 | . . 2 Smash 2 | . . 2 Melee Attacks 12 | . . 12 Impact 12 | . . 12 Slashing . | . . . Piercing . | . . . Sneak Attacks 3 | . . 3 Combat Hostiles . | . . . Follow-up Attacks . | . . . Damage Inflicted 886 | . 24 862 Guns 168 | . . 168 Cannons . | . . . Explosions 234 | . . 234 Melee 460 | . . 460 Ramming . | . . . Kinetic 103 | . . 103 Thermal 24 | . 24 . Explosive 234 | . . 234 Electromagnetic 65 | . . 65 Impact 460 | . . 460 Slashing . | . . . Piercing . | . . . Highest Corruption . | . . . Average Corruption . | . . . Corruption Purged . | . . . Corruption Blocked . | . . . Overload Shots . | . . . Overflow Damage 288 | . . 288 Projectiles . | . . . Explosions 25 | . . 25 Melee 263 | . . 263 Knockbacks 1 | . . 1 Impact 1 | . . 1 Kinetic . | . . . Secondary . | . . . Self-Inflicted Damage 37 | . . 37 Shots 2 | . . 2 Rammed . | . . . Targets Rammed . | . . . Kicked . | . . . Crushed . | . . . Highest Temperature 21 | . 21 . Average Temperature 12 | . 12 . Received Heat Transfer 147 | . . 147 Siege Activations . | . . . Martial Activations . | . . . Shielding Activations . | . . . Robots Disrupted . | . . . Combat Hostiles . | . . . Robots Corrupted 1 | . . 1 Combat Hostiles . | . . . Parts Fried 3 | . . 3 Impact Corruptions 6 | . . 6 Robots Melted . | . . . Combat Hostiles . | . . . Parts Melted . | . . . Heat Transferred 50 | . 50 . Parts Sabotaged . | . . . Parts Stolen . | . . . Parts Stripped . | . . . Power Chain Reactions . | . . . Alert | -11 -10 -9 ------- Run | Yrd Mat Mat Maximum Alert Level . | . . . Low Security (%) 100 | 100 100 100 Level 1 . | . . . Level 2 . | . . . Level 3 . | . . . Level 4 . | . . . Level 5 . | . . . High Security . | . . . Max Security . | . . . Peak Influence 186 | . 15 186 Initial . | . . . Average 54 | . 1 82 Influence Increases 331 | . 15 316 Destroy 0b10 Robot/C 120 | . . 120 Destroy 0b10 Robot/NC 20 | . . 20 Destroy Leader 22 | . . 22 Successful Hack 2 | . . 2 Disable Machine 45 | . 15 30 Destroy Structure 47 | . . 47 Lose Combat Pursuer 75 | . . 75 Influence Decreases 145 | . 15 130 Time Decay 105 | . 15 90 Lost Part 40 | . . 40 Squads Dispatched 2 | . . 2 Investigation . | . . . Extermination . | . . . Reinforcement 2 | . . 2 Assault . | . . . Garrison . | . . . Intercept . | . . . Searches Triggered . | . . . Construction Impeded 1 | . . 1 Haulers Reinforced . | . . . Active Scanning Responses . | . . . Cargo Convoy Interrupts . | . . . Stealth | -11 -10 -9 --------- Run | Yrd Mat Mat Distress Signals 4 | . 1 3 Communications Jammed . | . . . Distress Signals . | . . . Times Spotted 24 | . 3 21 Peak Tracking Total 8 | . 2 8 Tactical Retreats 2 | . . 2 Traps | -11 -10 -9 ------- Run | Yrd Mat Mat Traps Triggered . | . . . Indirectly . | . . . Trap Hack Attempts . | . . . Triggered . | . . . Disarmed . | . . . Reprogrammed . | . . . Reused . | . . . Traps Extracted . | . . . Installed . | . . . Triggered . | . . . Machines | -11 -10 -9 ---------- Run | Yrd Mat Mat Machines Disabled 3 | . 1 2 Max in Single Turn 1 | . 1 1 Machines Repaired . | . . . Machines Dismantled . | . . . Machines Sabotaged . | . . . Overloaded Fab Kills . | . . . Hacking | -11 -10 -9 --------- Run | Yrd Mat Mat Machines Accessed 3 | . 1 2 Terminals 2 | . 1 1 Fabricators . | . . . Repair Stations . | . . . Recycling Units . | . . . Scanalyzers 1 | . . 1 Garrison Access . | . . . Total Hacks 4 | . 1 3 Successful 2 | . 1 1 Failed 2 | . . 2 Catastrophic 1 | . . 1 Database Lockouts . | . . . Manual 2 | . 1 1 Terminals 2 | . 1 1 Fabricators . | . . . Repair Stations . | . . . Recycling Units . | . . . Scanalyzers 2 | . . 2 Garrison Access . | . . . Terminal Hacks . | . . . Fabricator Hacks . | . . . Repair Station Hacks . | . . . Recycling Unit Hacks . | . . . Scanalyzer 1 | . . 1 Retrieve Study 1 | . . 1 Garrison Access Hacks . | . . . Unauthorized Hacks 1 | . 1 . Terminals 1 | . 1 . Botnet 1 | . 1 . Fabricators . | . . . Repair Stations . | . . . Recycling Units . | . . . Scanalyzers . | . . . Garrison Access . | . . . Data Cores Recovered . | . . . Used . | . . . Hacking Detections 1 | . . 1 Full Trace Events . | . . . Feedback Events . | . . . Feedback Blocked . | . . . Robot Schematics Acquired . | . . . Robots Built . | . . . Authchips . | . . . Time . | . . . Total Robot Build Rating . | . . . Part Schematics Acquired . | . . . Parts Built . | . . . Authchips . | . . . Time . | . . . Total Part Build Rating . | . . . Part Studies Acquired 1 | . . 1 Parts Repaired . | . . . Time . | . . . Parts Recycled . | . . . Recycled Matter . | . . . Retrieved Matter . | . . . Retrieved Components . | . . . Parts Scanalyzed . | . . . Part Schematics Acquired . | . . . Parts Damaged . | . . . Bothacking | -11 -10 -9 ------------ Run | Yrd Mat Mat Used RIF Installer . | . . . Robots Hacked . | . . . Non-combat . | . . . Combat . | . . . Robot Hacks Applied . | . . . Relay Couplers Released . | . . . Fabnet Peak Effective % . | . . . Robots Rewired . | . . . Allies Hacked . | . . . Hacks Repelled . | . . . Allies | -11 -10 -9 -------- Run | Yrd Mat Mat Total Allies . | . . . Largest Group . | . . . Highest-Rated Group . | . . . Highest-Rated Ally . | . . . Total Orders . | . . . Ally Attacks . | . . . Total Damage . | . . . Kills . | . . . Allies Corrupted . | . . . Allies Melted . | . . . Intel | -11 -10 -9 ------- Run | Yrd Mat Mat Active Infowar (turns) . | . . . Robot Analysis Total . | . . . Derelict Logs Recovered . | . . . Drone Launches . | . . . Drone Recoveries . | . . . Exploration | -11 -10 -9 ------------- Run | Yrd Mat Mat Turns Passed 359 | 17 107 235 Spaces Moved 486 | 34 172 280 Core 278 | 34 172 72 Treads . | . . . Legs . | . . . Wheels . | . . . Hover . | . . . Flight 208 | . . 208 Fastest Speed 34 | 50 50 34 Average Speed 44 | 50 50 40 Slowest Speed 50 | 50 50 50 Overloaded Moves . | . . . Propulsion Burnouts . | . . . Robots Hopped 1 | . . 1 Potential Cave-ins . | . . . Cave-ins Triggered . | . . . Exploration Rate (%) 22 | 3 34 29 Regions Visited 2 Branch Regions . Pre-discovered Areas . | . . . Known Exits Taken 1 | . 1 . Unknown Exits Taken 1 | 1 . . Scrap Searched . | . . . Spaces Dug . | . . . Terrain Destroyed 44 | . . 44 Melee . | . . . Projectile . | . . . AOE 44 | . . 44 Terrain Rammed . | . . . Walls Destroyed . | . . . Machines Disabled . | . . . Actions | -11 -10 -9 --------- Run | Yrd Mat Mat Total 557 | 33 178 346 Wait 11 | . . 11 Move 482 | 33 171 278 Hop 1 | . . 1 Pick Up 3 | . 1 2 Fast Attach 12 | . 4 8 Attach 1 | . . 1 Detach 1 | . . 1 Swap 1 | . . 1 Drop 2 | . . 2 Fire 31 | . 2 29 Melee 12 | . . 12 Ram . | . . . Kick . | . . . Crush . | . . . Escape Stasis . | . . . Rewire . | . . . Trap . | . . . Miscellaneous . | . . . Route ------- -11/Scrapyard -10/Materials (discovered 2 exits: *Mat / [*Min]) -9/Materials (discovered 1 exit: [*Mat]) History --------- Turn | Location | Event 6 | -11/Scrapyard | Discovered new exit (range 15) 18 | -11/Scrapyard | Entered Materials 50 | -10/Materials | Discovered new exit (range 11) 113 | -10/Materials | Discovered new exit (range 15) 125 | -10/Materials | Identified exit to Materials 125 | -10/Materials | Entered another Materials area 125 | -9/Materials | Evolved 2 slots: Propulsion x1, Utility x1 269 | -9/Materials | Core integrity fell below 50% 281 | -9/Materials | Core integrity fell below 20% 302 | -9/Materials | Build established: Mutant 357 | -9/Materials | Discovered new exit (range 16) 360 | -9/Materials | Destroyed by Y-45 Defender with Beam Rifle Last Messages --------------- 00305_ Terrain Scanner fried. 00307_ W-16 Scout sends out distress signal. 00313_ Flight Unit+ destroyed. 00325_ K-01 Serf collects debris. 00328_ Sneak attack on K-01 Serf. 00328_ K-01 Serf suffers critical hit (Smash). 00328_ Destroyed Med. Matter Pod. 00328_ K-01 Serf system corrupted by crushing effect. 00328_ K-01 Serf destroyed. 00332_ W-16 Scout sends out distress signal. 00336_ Destroyed Visual Processing Unit. 00336_ W-16 Scout system corrupted by crushing effect. 00336_ W-16 Scout destroyed. 00338_ Acquired 9 matter. 00339_ Acquired Lgt. Ion Engine. 00345_ Acquired Mni. Grenade Launcher. 00347_ Connecting with Terminal... 00357_ EXIT=FOUND Map ----- +----------------------------------------------------+ | ?????????????????????????????????????? | | ?????????????????????????????????????? | | ?????????????????????????????????????? | | ?????????????????????????????????????? | | ?????????????????????????????????????? | | ??????????????????????????? ???????? | | ?????????????????????????? ??????? | | ?????????????????????????? ??????? | | ?????????????????????????? ??????? | | ?????????????????????????? ??????? | | ??????????????????????????# #??????? | | ??????????????????????????# #??????? | | ??????????????????????????# #??????? | | ??????????????????????????# #??????? | | ??????????????????????????# #??????? | | ????????????#######???????# #??????? | | ????????????? ???????# #??????? | | ????????????? = ?????# ######## | | ?????????????? ?????# # | | ?????????????? """?????# # """ " | | ???????????????= ""??????# + """ " | | ??????????????? ""??????# # """ | | ???????#???????? ???????# # | | ???????# ?????? ??????## ######## | | ??????## #####+######## #?????? | | ????# @ #?????? | | ????# < Y! #?????? | | ????# #?????? | | ????####+######+########## #?????? | | ?????????????????????????#######?????? | | ?????????????????????????????????????? | | ?????????????????????????????????????? | | ?????????????????????????????????????? | | ?????????????????????????????????????? | | ?????????????????????????????????????? | | ?????????????????????????????????????? | | ?????????????????????????????????????? | | ?????????????????????????????????????? | | ?????????????????????????????????????? | | ?????????????????????????????????????? | | ?????????????????????????????????????? | | ?????????????????????????????????????? | | ?????????????????????????????????????? | | ?????????????????????????????????????? | | ?????????????????????????????????????? | | ?????????????????????????????????????? | | ?????????????????????????????????????? | | ?????????????????????????????????????? | | ?????????????????????????????????????? | | ?????????????????????????????????????? | +----------------------------------------------------+ Best States ------------- Heat Dissipation 28 Energy Generation 10 Energy Capacity 125 Matter Stores 300 Matter Capacity 300 Sight Range 16 Terrain Scan Density 10 Evasion (%) 63 Targeting Accuracy 5 Item Schematics ----------------- None Robot Schematics ------------------ None Fabricated ------------ Nothing Repaired ---------- Nothing Studied --------- Flight Unit | -9/Materials | Hacked Alien Tech Used ----------------- None Achievements -------------- None Challenges ------------ None Game ------ Seed ShadingHoverBallwheel Manual? 0 Play Time 00:07:29 Cumulative 58.3 hours Start 2026.09.08 @ 08:59:56 End 2026.09.08 @ 09:04:21 Sessions 1 Manual Loads 0 Difficulty Rogue Special Mode None Game No. 142 Rogue 142 Adventurer 0 Explorer 0 Win Type - Total 3 Types 3/0/0/0/0/0/0/0/0/0 Lore% 49 Gallery% 43 Achievement% 44 Wizard Run 0 Options --------- Layout 2 ASCII 0 Keyboard 0 Movement Mouse Keybinds 0 Fullscreen 1 Font 16/SmallcapsGlow Map View 50x49 Zoom Use 0% Tactical HUD 1 Map Filters NONE Filters NONE Steam SD RUN: f6d7bff9-3758-43a8-8b51-1bc7fc01498b